bitfinex/quotes_ETHUSD_20251031
["timestamp","ask_amount","ask_price","bid_price","bid_amount"]
[1761897816751,12.44413408,3839.1,3838.7,0.001]
[1761897817437,14.33769908,3839.1,3838.7,0.001]
[1761897818035,13.97863608,3839.1,3838.7,0.001]
[1761897818235,1.45426222,3839.1,3838.7,0.001]
[1761897818456,0.5456,3839.1,3838.7,0.001]
[1761897818861,2.36894401,3839.1,3838.7,0.001]
[1761897819365,1.93014401,3839.1,3838.7,0.001]
[1761897819569,0.1068,3839.1,3838.7,0.001]
[1761897820937,2.36894401,3839.1,3838.7,0.001]
[1761897821138,2.78816555,3839.1,3838.7,0.001]
[1761897822570,2.36894401,3839.1,3838.7,0.001]
[1761897822776,0.5456,3839.1,3838.7,0.001]
[1761897823155,2.36894401,3839.1,3838.7,0.001]
[1761897830575,2.77444801,3839.1,3838.7,0.001]
[1761897831090,30.56991981,3839.1,3838.7,0.001]
[1761897831383,30.67271021,3839.1,3838.7,0.001]
[1761897831590,20.575767,3838.7,3838.6,1e-08]
[1761897831883,20.679167,3838.7,3838.6,1e-08]
[1761897832076,21.121367,3838.7,3838.6,1e-08]
[1761897832480,20.034797,3838.7,3838.6,1e-08]
[1761897832672,20.51764682,3838.7,3838.6,1e-08]
[1761897832872,27.74859482,3838.7,3838.6,1e-08]
[1761897833752,11.77330682,3838.7,3838.6,1e-08]
[1761897834759,0.92844982,3838.7,3838.6,1e-08]
[1761897834957,0.1034,3838.7,3838.6,1e-08]
[1761897835154,1.926934,3838.7,3838.6,1e-08]
[1761897835381,0.1034,3838.7,3838.6,1e-08]
[1761897835595,1.823534,3838.7,3838.6,1e-08]
[1761897836203,0.1802,3838.9,3838.6,1e-08]
[1761897836370,1.8234865,3838.8,3838.6,1e-08]
[1761897837094,1.823534,3838.7,3838.6,1e-08]
[1761897837502,0.1802,3838.9,3838.6,1e-08]
[1761897837790,8.31325312,3839.3,3838.8,0.4574]
[1761897838095,8.31325312,3839.3,3839.1,0.4574]
[1761897838293,6.49,3839.3,3839.1,0.4574]
[1761897838684,1.82312789,3839.6,3839.2,0.9368]
[1761897838990,0.0677,3839.9,3839.3,0.4574]
[1761897838991,1.82316071,3839.5,3839.3,0.4574]
[1761897839192,0.0677,3839.9,3839.3,0.4574]
[1761897839397,0.405504,3839.8,3839.4,0.4574]
[1761897839615,0.23181505,3839.7,3839.4,0.4574]
[1761897840269,1.82310962,3839.6,3839.4,0.4574]
[1761897841969,0.002,3839.7,3839.5,0.4574]
[1761897842317,0.002,3839.7,3839.6,0.4574]
[1761897842776,0.002,3839.7,3839.6,0.9368]
[1761897848181,0.1296,3839.6,3839.0,0.00657]
[1761897848392,0.4442,3839.7,3839.0,0.00657]
[1761897848605,1.82316296,3839.5,3839.0,0.00657]
[1761897848911,0.40903843,3839.5,3839.0,0.00657]
[1761897849074,1.82324543,3839.4,3839.0,0.00657]
[1761897850809,1.82325182,3839.3,3839.0,0.00657]
[1761897851013,2.2322054,3839.5,3839.0,0.00657]
[1761897851219,1.82329061,3839.3,3839.0,0.00657]
[1761897852009,2.23222713,3839.5,3839.0,0.00657]
[1761897852325,0.40903843,3839.5,3839.0,0.00657]
[1761897852713,1.82320154,3839.4,3839.0,0.00657]
[1761897852908,1.82326665,3839.3,3839.0,0.00657]
[1761897853393,2.27316492,3839.4,3839.0,0.00657]
[1761897853802,1.82324955,3839.3,3839.0,0.00657]
[1761897854003,0.002,3839.7,3839.3,0.4574]
[1761897854205,0.002,3839.7,3839.6,0.4574]
[1761897854928,0.002,3839.7,3839.6,0.9368]
[1761897855130,0.002,3839.7,3839.6,2.75990657]
[1761897855333,0.002,3839.7,3839.6,0.9368]
[1761897859521,0.002,3839.7,3839.6,0.96284437]
[1761897859732,0.1316,3839.7,3839.6,0.9368]
[1761897860352,0.1316,3839.7,3839.6,0.96284437]
[1761897862031,0.1316,3839.7,3839.6,2.78595094]
[1761897862221,0.1316,3839.7,3839.6,0.96284437]
[1761897862953,0.1316,3839.7,3839.6,2.78595094]
[1761897863156,0.002,3839.7,3839.6,3.22083043]
[1761897863358,0.002,3839.7,3839.6,3.2468748]
[1761897864744,0.002,3840.5,3840.4,1.82272679]
[1761897864947,0.002,3840.5,3840.4,9.5847698]
[1761897865147,0.01,3840.7,3840.6,1.82263188]
[1761897865346,0.01,3840.7,3840.6,2.76463188]
[1761897865520,0.01,3840.7,3840.6,3.21023188]
[1761897870931,0.01,3840.7,3840.6,4.63594947]
[1761897871139,0.01,3842.7,3841.6,1.82215743]
[1761897871334,0.01,3842.7,3841.6,2.49918825]
[1761897871645,0.01,3842.7,3841.6,2.98558825]
[1761897871851,0.01,3842.7,3841.6,3.16578825]
[1761897874814,0.1396,3842.7,3841.6,3.29538825]
[1761897875054,0.1396,3842.7,3841.6,5.20683008]
[1761897875254,0.1396,3842.7,3841.6,5.18079926]
[1761897875822,0.01,3842.7,3841.6,5.05119926]
[1761897876053,0.012,3841.7,3841.6,5.07723008]
[1761897879461,0.002,3842.1,3842.0,1.82196772]
[1761897879670,0.002,3842.5,3842.4,2.22728205]
[1761897879847,0.002,3842.5,3842.4,8.93454813]
[1761897880047,0.01,3842.7,3842.6,1.82168323]
[1761897880374,0.0677,3844.5,3843.6,6.03024068]
[1761897880672,0.0677,3844.5,3843.6,8.50244996]
[1761897880866,0.0677,3844.5,3843.6,10.0212301]
[1761897881368,0.5153,3844.5,3843.6,2.16978014]
[1761897881567,2.33608485,3844.5,3843.6,1.1374]
[1761897881866,0.5153,3844.5,3843.6,2.98462655]
[1761897882437,0.0677,3844.5,3843.6,2.98462655]
[1761897885844,0.1296,3844.3,3843.6,3.11422655]
[1761897886881,0.1296,3844.3,3843.6,1.29301727]
[1761897887094,0.1114,3843.7,3843.5,0.10427025]
[1761897887302,0.0044,3843.6,3843.5,0.10427025]
[1761897887500,0.0044,3843.6,3843.3,0.1296]
[1761897887661,0.097,3843.4,3843.3,0.1296]
[1761897887862,0.01,3843.7,3843.3,0.23387433]
[1761897888517,0.4576,3843.7,3843.3,0.23387433]
[1761897890867,0.01,3843.7,3843.3,0.23387433]
[1761897891206,0.4576,3843.7,3843.3,0.23387433]
[1761897891374,0.1014,3843.4,3843.3,0.10427433]
[1761897891573,0.1014,3843.4,3842.9,1.82153068]
[1761897891911,0.1014,3843.4,3843.0,2.20782001]
[1761897892199,0.1014,3843.4,3843.0,2.62959623]
[1761897892365,0.1014,3843.4,3843.0,1.29204001]
[1761897892566,0.1014,3843.4,3843.1,0.1296]
[1761897893762,0.1014,3843.4,3843.0,1.26601868]
[1761897893963,0.1014,3843.4,3843.0,0.78211868]
[1761897894360,0.1296,3843.5,3843.0,0.78211868]
[1761897895413,0.1296,3843.5,3842.1,0.1928]
[1761897895414,0.1014,3843.1,3842.1,0.1928]
[1761897895569,0.4441,3843.4,3842.2,0.02602675]
[1761897895773,0.4441,3843.4,3842.4,2.18179868]
[1761897896081,0.4476,3843.4,3842.5,1.42570472]
[1761897896279,2.26891753,3843.4,3842.5,1.8477541]
[1761897896482,0.4476,3843.3,3842.5,1.8477541]
[1761897897020,0.4476,3843.5,3842.5,0.8768859]
[1761897897314,1.82140044,3843.2,3842.1,2.07638]
[1761897897470,1.82140044,3843.2,3842.2,3.70544985]
[1761897897671,1.82140044,3843.2,3842.2,0.4839]
[1761897898319,0.4476,3843.4,3842.2,0.4839]
[1761897898492,0.4476,3843.4,3842.6,1.82164954]
[1761897898768,1.82126149,3843.5,3842.7,0.02602336]
[1761897898985,0.22798615,3843.4,3842.7,0.02602336]
[1761897900412,0.22798615,3843.4,3842.7,1.84764738]
[1761897900807,0.22798615,3843.4,3842.7,0.02602336]
[1761897900975,2.04930404,3843.4,3842.8,0.02602269]
[1761897901306,0.4476,3843.3,3842.2,1.82187288]
[1761897901507,0.4476,3843.3,3842.6,1.82166804]
[1761897901674,0.4476,3843.3,3842.7,1.84765439]
[1761897901872,0.011,3843.7,3842.7,1.84765439]
[1761897901873,0.4476,3843.5,3842.8,1.82155972]
[1761897902079,0.011,3843.7,3842.9,0.02602201]
[1761897902287,0.011,3843.7,3843.0,0.6316476]
[1761897902510,0.011,3843.7,3843.0,1.1155476]
[1761897902816,0.011,3843.7,3843.0,2.93703514]
[1761897903019,0.011,3843.7,3843.1,1.88358]
[1761897903181,0.011,3843.7,3843.3,1.82135144]
[1761897903382,0.011,3843.7,3843.4,0.02601862]
[1761897903613,0.1014,3843.4,3843.0,0.60562627]
[1761897904118,0.0044,3843.1,3842.5,0.4839]
[1761897904288,2.26882343,3843.6,3842.7,1.82161987]
[1761897904483,0.4476,3843.6,3842.5,2.30561895]
[1761897904688,0.4476,3843.6,3842.8,1.82154384]
[1761897904899,0.4476,3843.6,3842.7,1.8215955]
[1761897905089,0.4476,3843.6,3842.9,1.82153532]
[1761897905419,0.1296,3843.3,3842.6,0.6135]
[1761897906382,0.1296,3843.3,3842.6,2.67867715]
[1761897906688,0.1296,3843.3,3842.6,2.43515452]
[1761897906917,0.1296,3843.3,3842.7,1.82163004]
[1761897907220,0.1296,3843.3,3842.7,0.4839]
[1761897907381,0.1296,3843.3,3843.1,4.88291379]
[1761897907587,0.1296,3843.3,3843.2,0.47921998]
[1761897907822,0.1296,3843.5,3843.2,0.47921998]
[1761897908119,0.1296,3843.5,3843.4,4.88291379]
[1761897908320,0.231,3843.5,3843.4,4.88291379]
[1761897908882,0.1296,3843.5,3843.4,7.66733646]
[1761897909087,0.011,3843.7,3843.4,6.28498733]
[1761897909325,0.1406,3843.7,3843.6,0.4532]
[1761897909739,0.1406,3843.7,3843.6,0.96311727]
[1761897910041,0.011,3843.7,3843.6,0.96311727]
[1761897910205,0.011,3843.7,3843.6,2.78432655]
[1761897910405,0.011,3843.7,3843.6,0.47921727]
[1761897910634,0.011,3843.7,3843.6,0.4532]
[1761897911005,0.011,3843.7,3843.6,0.47921727]
[1761897911420,0.011,3843.7,3843.6,2.30042655]
[1761897913031,0.6553,3843.7,3842.5,0.4839]
[1761897913217,0.134,3843.4,3842.7,0.1296]
[1761897913547,0.1296,3843.4,3843.3,0.4532]
[1761897913745,0.011,3843.7,3843.3,0.4532]
[1761897913920,0.1406,3843.7,3843.3,0.4532]
[1761897914122,0.1406,3843.7,3843.1,0.1296]
[1761897914316,0.1406,3843.7,3843.3,1.82133777]
[1761897915313,0.1406,3843.7,3843.1,0.1296]
[1761897916121,0.1014,3843.2,3843.1,0.1296]
[1761897916308,0.1014,3843.2,3842.6,1.9532797]
[1761897916512,0.1014,3843.2,3842.6,0.1316]
[1761897916736,0.1014,3843.2,3842.6,1.95327373]
[1761897917410,0.1014,3843.2,3842.6,0.1316]
[1761897917610,0.0044,3842.7,3842.6,0.1316]
[1761897917834,0.4476,3843.1,3842.6,0.1316]
[1761897918005,0.1296,3843.3,3842.6,0.1316]
[1761897918208,0.4476,3843.2,3842.6,0.1316]
[1761897919833,0.1296,3843.3,3842.6,0.1316]
[1761897920035,0.1296,3843.3,3842.7,1.82163582]
[1761897920240,0.1296,3843.3,3842.6,0.623]
[1761897920710,1.95099505,3843.3,3842.6,0.623]
[1761897920912,0.5772,3843.3,3842.6,0.1316]
[1761897921109,0.5772,3843.3,3842.6,1.95328237]
[1761897921321,0.1296,3843.3,3842.7,1.82162464]
[1761897921712,0.1296,3843.3,3842.8,1.84760853]
[1761897921914,0.1296,3843.3,3842.8,2.41680981]
[1761897922114,0.1296,3843.3,3842.8,1.08662397]
[1761897922311,0.1296,3843.3,3843.2,0.4919]
[1761897922561,0.1296,3843.3,3843.2,2.31329883]
[1761897922761,0.1014,3843.3,3843.0,0.02602133]
[1761897922910,0.1014,3843.3,3842.6,1.82363976]
[1761897923110,0.1014,3843.3,3842.8,1.82158842]
[1761897923518,0.1014,3843.3,3842.9,1.82153952]
[1761897924347,0.1014,3843.3,3842.9,2.31293952]
[1761897924670,0.1014,3843.3,3843.0,1.82149083]
[1761897925576,0.1014,3843.3,3842.7,0.18236398]
[1761897925778,0.1014,3843.3,3842.6,0.4934]
[1761897925951,0.1014,3843.3,3842.8,1.82154745]
[1761897926350,0.1014,3843.3,3842.9,1.8215317]
[1761897928751,0.1014,3843.3,3842.6,0.4934]
[1761897929284,0.1014,3843.3,3842.6,0.002]
[1761897929483,0.1014,3843.3,3842.7,1.8216311]
[1761897929484,0.4441,3843.2,3842.7,1.8216311]
[1761897929792,0.1014,3843.3,3842.8,6.73182054]
[1761897930086,0.4441,3843.5,3842.8,4.88422722]
[1761897930384,1.82128064,3843.5,3842.8,4.91024991]
[1761897930683,0.4476,3843.4,3842.8,4.91024991]
[1761897931252,0.4476,3843.4,3842.8,6.73182501]
[1761897931476,0.4476,3843.4,3842.8,5.8699979]
[1761897932286,0.1014,3842.9,3842.8,4.88422722]
[1761897933566,0.2808,3842.9,3842.6,0.002]
[1761897933756,0.0044,3842.7,3842.6,0.002]
[1761897934169,2.27363582,3842.7,3842.6,0.002]
[1761897935089,0.452,3842.7,3842.6,0.002]
[1761897936553,2.27363582,3842.7,3842.6,0.002]
[1761897936987,0.452,3842.7,3842.6,0.002]
[1761897937489,2.27363582,3842.7,3842.6,0.002]
[1761897938492,0.0044,3842.7,3842.6,0.002]
[1761897939004,0.1794,3842.9,3842.6,0.002]
[1761897939299,0.1296,3842.7,3842.6,0.002]
[1761897940681,0.1296,3842.7,3842.6,0.4939]
[1761897942173,0.1296,3842.7,3842.6,3.1483451]
[1761897942775,0.001,3843.3,3842.6,3.1483451]
[1761897943033,0.1296,3842.9,3842.7,0.02602336]
[1761897945010,0.1296,3842.9,3842.8,0.4919]
[1761897945881,0.1296,3843.1,3842.8,0.9833]
[1761897946081,0.1296,3843.1,3842.9,0.02602201]
[1761897947805,0.1296,3843.1,3843.0,0.4919]
[1761897948023,0.001,3843.3,3843.0,1.00932133]
[1761897948225,0.001,3843.3,3843.2,0.4919]
[1761897948440,0.001,3843.3,3843.2,0.02601998]
[1761897948582,0.001,3843.3,3843.2,0.39988405]
[1761897949911,0.001,3843.3,3843.2,0.89178405]
[1761897951709,0.1024,3843.3,3842.9,1.39968]
[1761897951913,0.001,3843.1,3842.9,1.39968]
[1761897952119,0.001,3843.1,3842.9,1.86258]
[1761897952292,0.001,3843.1,3843.0,0.4919]
[1761897953406,0.4486,3843.1,3842.8,0.1296]
[1761897953606,0.1306,3843.1,3842.6,0.002]
[1761897955797,1.95204643,3843.1,3842.6,0.002]
[1761897956320,1.8215264,3843.0,3842.6,0.002]
[1761897957017,1.95205159,3843.1,3842.6,0.002]
[1761897958421,0.1306,3843.1,3842.6,0.002]
[1761897958922,1.95205484,3843.1,3842.6,0.4649]
[1761897959089,0.1306,3843.1,3842.6,0.4649]
[1761897959711,1.95204867,3843.1,3842.6,0.4649]
[1761897960020,1.95204817,3843.1,3842.6,0.4649]
[1761897960192,1.95204817,3843.1,3842.6,0.002]
[1761897960193,0.1014,3842.7,3842.6,0.002]
[1761897960515,0.4476,3843.0,3842.6,0.002]
[1761897960725,1.9520484,3843.1,3842.6,0.002]
[1761897961527,0.1306,3843.1,3842.6,0.002]
[1761897961690,0.1306,3843.1,3842.6,0.4649]
[1761897962211,0.1306,3843.1,3842.6,0.49092404]
[1761897963294,0.1306,3843.1,3842.6,0.002]
[1761897963734,0.4476,3842.7,3842.6,0.002]
[1761897964249,1.92303582,3842.7,3842.6,0.002]
[1761897964401,2.75961384,3842.7,3842.6,0.002]
[1761897966593,0.1802,3842.9,3842.6,0.002]
[1761897967143,0.1014,3842.7,3842.6,0.002]
[1761897968245,0.001,3843.1,3843.0,1.82149362]
[1761897968397,0.001,3843.1,3843.0,5.98647344]
[1761897968599,0.001,3843.1,3843.0,1.09054734]
[1761897968824,0.001,3843.1,3843.0,3.37494096]
[1761897969001,0.001,3843.1,3843.0,3.55514096]
[1761897969197,0.001,3843.1,3843.0,1.73364734]
[1761897969402,0.001,3843.1,3843.0,2.95649362]
[1761897971909,0.0054,3843.1,3843.0,0.1802]
[1761897972148,0.4451,3843.1,3842.6,0.002]
[1761897972354,0.0044,3842.7,3842.6,0.002]
[1761897972717,2.26215587,3843.1,3842.6,0.002]
[1761897972911,2.67060285,3843.1,3842.6,0.002]
[1761897973253,0.84914698,3843.1,3842.6,0.002]
[1761897973446,2.26214741,3843.1,3842.6,0.002]
[1761897973654,1.82153033,3843.0,3842.6,0.002]
[1761897973957,0.099,3842.7,3842.6,0.002]
[1761897974318,1.92063582,3842.7,3842.6,0.002]
[1761897974613,2.36463582,3842.7,3842.6,0.002]
[1761897974816,0.5176187,3842.7,3842.6,0.002]
[1761897975040,2.33925452,3842.7,3842.6,0.002]
[1761897975451,0.5176187,3842.7,3842.6,0.002]
[1761897975616,0.099,3842.7,3842.6,0.002]
[1761897976123,2.36463582,3842.7,3842.6,0.002]
[1761897977228,0.099,3842.7,3842.6,0.002]
[1761897980161,1.92063582,3842.7,3842.6,0.002]
[1761897980341,2.36463582,3842.7,3842.6,0.002]
[1761897981025,2.33925412,3842.7,3842.6,0.002]
[1761897981225,2.78325412,3842.7,3842.6,0.002]
[1761897987179,24.27344112,3842.7,3842.6,0.002]
[1761897987363,13.19193312,3842.7,3842.6,0.002]
[1761897988350,13.19433312,3842.7,3842.6,0.002]
[1761897988649,13.19533312,3842.7,3842.6,0.002]
[1761897988982,4.59183812,3842.7,3842.6,0.002]
[1761897989183,15.60759012,3842.7,3842.6,0.002]
[1761897990182,24.57295412,3842.7,3842.6,0.002]
[1761897990579,23.12226012,3842.7,3842.6,0.002]
[1761897990755,19.19529112,3842.7,3842.6,0.002]
[1761897990956,15.97968412,3842.7,3842.6,0.002]
[1761897991154,15.99288812,3842.7,3842.6,0.002]
[1761897992187,19.05160012,3842.7,3842.6,0.002]
[1761897992362,19.45975325,3842.7,3842.6,0.002]
[1761897992855,18.18054925,3842.7,3842.6,0.002]
[1761897993054,4.99999125,3842.7,3842.6,0.002]
[1761897993257,20.88633825,3842.7,3842.6,0.002]
[1761897993760,18.10279125,3842.7,3842.6,0.002]
[1761897994089,21.30369525,3842.7,3842.6,0.002]
[1761897994286,9.04725025,3842.7,3842.6,0.002]
[1761897995072,14.39644825,3842.7,3842.6,0.002]
[1761897995600,11.49859725,3842.7,3842.6,0.002]
[1761897995794,10.00461125,3842.7,3842.6,0.002]
[1761897996170,4.99999125,3842.7,3842.6,0.002]
[1761897996359,15.26261525,3842.7,3842.6,0.002]
[1761897996685,11.73548925,3842.7,3842.6,0.002]
[1761897996890,11.32733612,3842.7,3842.6,0.002]
[1761897997390,22.64772512,3842.7,3842.6,0.002]
[1761897997591,17.13021612,3842.7,3842.6,0.002]
[1761897998089,16.13807512,3842.7,3842.6,0.002]
[1761897998391,7.08412112,3842.7,3842.6,0.002]
[1761897998896,4.49643812,3842.7,3842.6,0.002]
[1761897999887,4.14783812,3842.7,3842.6,0.002]
[1761898000318,11.57324912,3842.7,3842.6,0.002]
[1761898000501,11.92184912,3842.7,3842.6,0.002]
[1761898001002,14.58234112,3842.7,3842.6,0.002]
[1761898001431,19.47154425,3842.7,3842.6,0.002]
[1761898001733,24.62821518,3842.7,3842.6,0.002]
[1761898002029,2.22732946,3842.3,3842.2,1e-08]
[1761898002333,12.50116503,3842.3,3842.2,1e-08]
[1761898002495,11.26892103,3842.3,3842.2,1e-08]
[1761898002926,23.44156303,3842.3,3842.2,1e-08]
[1761898004132,23.87243603,3842.3,3842.2,1e-08]
[1761898004832,22.28474403,3842.3,3842.2,1e-08]
[1761898005127,19.17448203,3842.3,3842.2,1e-08]
[1761898005305,13.03691703,3842.3,3842.2,1e-08]
[1761898005888,4.61598603,3842.3,3842.2,1e-08]
[1761898006092,18.36579903,3842.3,3842.2,1e-08]
[1761898007128,24.85928503,3842.3,3842.2,1e-08]
[1761898007636,25.03512109,3842.3,3842.2,1e-08]
[1761898008140,25.27545609,3842.3,3842.2,1e-08]
[1761898008606,16.92067909,3842.3,3842.2,1e-08]
[1761898008794,13.60175203,3842.3,3842.2,1e-08]
[1761898009191,14.54317003,3842.3,3842.2,1e-08]
[1761898009625,13.57016616,3842.3,3842.2,1e-08]
[1761898010216,20.67128216,3842.3,3842.2,1e-08]
[1761898010528,21.01988216,3842.3,3842.2,1e-08]
[1761898010935,21.01988216,3842.3,3841.4,0.002]
[1761898010936,30.08708499,3841.5,3841.4,0.002]
[1761898011093,35.86654128,3841.5,3841.4,0.002]
[1761898011298,36.06354128,3841.5,3841.4,0.002]
[1761898011803,35.79607348,3841.5,3841.4,0.002]
[1761898012104,16.92541183,3841.5,3841.4,0.002]
[1761898012308,21.81461496,3841.5,3841.4,0.002]
[1761898013198,30.99105696,3841.5,3841.4,0.002]
[1761898014229,23.71139096,3841.5,3841.4,0.002]
[1761898014434,23.90839096,3841.5,3841.4,0.002]
[1761898015013,22.79845996,3841.5,3841.4,0.002]
[1761898015334,26.56419396,3841.5,3841.4,0.002]
[1761898015503,26.26057096,3841.5,3841.4,0.002]
[1761898015700,22.51995896,3841.5,3841.4,0.002]
[1761898015901,1.82434718,3841.2,3841.1,1e-08]
[1761898016108,13.82655574,3841.2,3841.1,1e-08]
[1761898016307,36.91736774,3841.2,3841.1,1e-08]
[1761898016506,19.63551542,3840.7,3840.6,0.002]
[1761898016754,19.34136855,3840.7,3840.6,0.002]
[1761898017260,27.18042055,3840.7,3840.6,0.002]
[1761898017465,27.08908712,3840.7,3840.6,0.002]
[1761898017826,27.28608712,3840.7,3840.6,0.002]
[1761898018209,39.80254812,3840.7,3840.6,0.002]
[1761898018677,36.91662812,3840.7,3840.6,0.002]
[1761898019020,37.18409592,3840.7,3840.6,0.002]
[1761898019220,10.07001592,3840.7,3840.6,0.002]
[1761898019419,35.90743792,3840.7,3840.6,0.002]
[1761898019945,31.21729992,3840.7,3840.6,0.002]
[1761898020148,30.94983212,3840.7,3840.6,0.002]
[1761898020343,37.62816812,3840.7,3840.6,0.002]
[1761898020545,18.54509912,3840.7,3840.6,0.002]
[1761898021048,18.74209912,3840.7,3840.6,0.002]
[1761898021420,2.22842066,3840.0,3839.9,0.002]
[1761898021621,45.53937341,3840.0,3839.9,0.002]
[1761898021847,45.88797341,3840.0,3839.9,0.002]
[1761898022148,45.038326,3840.0,3839.9,0.002]
[1761898022350,45.992401,3840.0,3839.9,0.002]
[1761898022556,46.40084664,3840.0,3839.9,0.002]
[1761898022931,45.03192064,3840.0,3839.9,0.002]
[1761898023438,28.79919438,3840.0,3839.9,0.002]
[1761898024420,36.62244038,3840.0,3839.9,0.002]
[1761898025457,36.21399474,3840.0,3839.9,0.002]
[1761898025656,31.30778574,3840.0,3839.9,0.002]
[1761898026318,6.21399474,3840.0,3839.9,0.002]
[1761898026537,36.21399474,3840.0,3839.9,0.002]
[1761898027120,36.48146254,3840.0,3839.9,0.002]
[1761898028539,34.48069745,3839.6,3839.5,1e-08]
[1761898028738,35.09671575,3839.6,3839.5,1e-08]
[1761898028948,2.22880052,3839.2,3839.1,1e-08]
[1761898029150,2.22880052,3839.2,3839.0,1e-08]
[1761898029151,33.62852801,3839.1,3839.0,1e-08]
[1761898029333,40.22368289,3839.1,3839.0,1e-08]
[1761898029734,40.32814212,3839.1,3839.0,1e-08]
[1761898029960,40.87301869,3839.1,3839.0,1e-08]
[1761898030168,19.09525981,3839.1,3839.0,1e-08]
[1761898030531,20.44299381,3839.1,3839.0,1e-08]
[1761898030931,9.78992181,3839.1,3839.0,0.49000001]
[1761898031132,9.78992181,3839.1,3839.0,1e-08]
[1761898031438,4.37280458,3839.1,3839.0,1e-08]
[1761898031755,18.22740058,3839.1,3839.0,1e-08]
[1761898032152,24.62165546,3839.1,3839.0,1e-08]
[1761898032565,40.04162746,3839.1,3839.0,1e-08]
[1761898033558,18.30646758,3839.1,3839.0,1e-08]
[1761898034635,23.84140558,3839.1,3839.0,1e-08]
[1761898034856,20.65835758,3839.1,3839.0,1e-08]
[1761898035070,20.45895758,3839.1,3839.0,1e-08]
[1761898035367,17.82674358,3839.1,3839.0,1e-08]
[1761898035533,10.01083858,3839.1,3839.0,1e-08]
[1761898035734,8.99983458,3839.1,3839.0,1e-08]
[1761898036546,21.41349258,3839.1,3839.0,1e-08]
[1761898036746,17.87558158,3839.1,3839.0,1e-08]
[1761898037271,14.93051058,3839.1,3839.0,1e-08]
[1761898037670,15.37105958,3839.1,3839.0,1e-08]
[1761898037852,11.90510658,3839.1,3839.0,1e-08]
[1761898038470,11.64134258,3839.1,3839.0,0.49870001]
[1761898038671,6.12311401,3839.1,3839.0,0.97040001]
[1761898039074,6.12311401,3839.1,3839.0,0.49870001]
[1761898039376,5.71761001,3839.1,3839.0,0.49870001]
[1761898039544,8.93579501,3839.1,3839.0,0.97040001]
[1761898039749,9.62480921,3839.1,3839.0,0.97040001]
[1761898040142,9.62480921,3839.1,3839.0,0.49870001]
[1761898040536,4.74528821,3839.1,3839.0,0.49870001]
[1761898040740,9.09010621,3839.1,3839.0,0.49870001]
[1761898040975,8.10620221,3839.1,3839.0,0.49870001]
[1761898041277,8.10620221,3839.1,3839.0,0.98800001]
[1761898041665,11.73969221,3839.1,3839.0,0.98800001]
[1761898042179,9.05633021,3839.1,3839.0,0.98800001]
[1761898042365,9.05633021,3839.1,3839.0,0.99000001]
[1761898042675,9.80268121,3839.1,3839.0,0.99000001]
[1761898043072,9.02402021,3839.1,3839.0,0.99000001]
[1761898043380,9.02402021,3839.1,3839.0,0.50070001]
[1761898043743,7.93868021,3839.1,3839.0,0.50070001]
[1761898044375,7.93868021,3839.1,3839.0,0.99000001]
[1761898044674,7.68068201,3839.1,3839.0,0.99000001]
[1761898045676,7.61922101,3839.1,3839.0,0.99000001]
[1761898046080,7.96782101,3839.1,3839.0,0.00200001]
[1761898046283,7.61922101,3839.1,3839.0,0.96850001]
[1761898046481,12.71512617,3839.1,3839.0,0.00200001]
[1761898046680,40.60093649,3839.1,3839.0,0.00200001]
[1761898046867,29.47545549,3839.1,3839.0,0.00200001]
[1761898047292,29.12835549,3839.1,3839.0,0.00200001]
[1761898047483,35.61835549,3839.1,3839.0,0.00200001]
[1761898047659,47.09093649,3839.1,3839.0,0.00200001]
[1761898047858,2.229038,3838.7,3838.6,1e-08]
[1761898048059,2.229038,3838.7,3838.2,0.001]
[1761898048060,0.405504,3838.4,3838.2,0.001]
[1761898048292,18.66472273,3838.7,3838.2,0.4903]
[1761898048293,17.16544516,3838.3,3838.2,0.4903]
[1761898048456,15.1500382,3838.3,3838.2,0.001]
[1761898049875,14.8998142,3838.3,3838.2,0.4782]
[1761898050086,14.8998142,3838.3,3838.2,0.9675]
[1761898050391,2.22941811,3837.9,3837.7,0.4893]
[1761898050571,3.62909811,3837.9,3837.1,0.01]
[1761898050756,3.62909811,3837.9,3837.8,0.6678]
[1761898050961,3.62909811,3837.9,3837.8,0.4782]
[1761898051162,1.805184,3837.9,3837.8,0.9675]
[1761898051969,2.58862007,3837.9,3837.8,0.9675]
[1761898052158,4.41253418,3837.9,3837.8,0.9675]
[1761898052361,9.30903934,3837.9,3837.8,0.9675]
[1761898052599,7.48512523,3837.9,3837.8,0.9675]
[1761898052767,2.58862007,3837.9,3837.8,0.9675]
[1761898053465,4.41253418,3837.9,3837.8,0.9675]
[1761898053963,9.30903934,3837.9,3837.8,0.9675]
[1761898054185,0.405504,3837.5,3837.1,0.01]
[1761898054395,7.12616092,3837.4,3837.1,0.01]
[1761898055006,7.12616092,3837.4,3837.3,0.4782]
[1761898055976,5.30200916,3837.4,3837.3,0.4782]
[1761898056225,7.12616092,3837.4,3837.3,0.4782]
[1761898056495,7.12616092,3837.4,3837.3,0.9675]
[1761898057009,9.00404092,3837.4,3837.3,0.9675]
[1761898057217,10.53344424,3837.4,3837.3,0.4782]
[1761898057560,8.70929248,3837.4,3837.3,0.9675]
[1761898058002,10.53344424,3837.4,3837.3,0.9675]
[1761898059381,8.70929248,3837.4,3837.3,0.9675]
[1761898059577,10.53344424,3837.4,3837.3,0.9675]
[1761898063375,11.15123046,3837.4,3837.3,0.9675]
[1761898064111,11.15123046,3837.4,3837.3,0.4782]
[1761898065106,12.11773046,3837.4,3837.3,0.001]
[1761898065911,9.8091787,3837.4,3837.3,0.001]
[1761898066276,9.3270787,3837.4,3837.3,0.001]
[1761898068122,7.79767538,3837.4,3837.3,0.4782]
[1761898069322,7.79767538,3837.4,3837.3,0.9675]